Workbook

Sheet combined_granular_with_interpol
A1: timestamp | B1: seconds before last contact | C1: lat | D1: lng | E1: altitude | F1: speed | G1: vs | H1: heading | I1: squawk | J1: no_position | K1: track | L1: fpm | M1: x | N1: y | O1: AOA
A2: 1647839796 | B2: =A2-$A$2 -> 0 | C2: 25.09923974 | D2: 102.9161142 | E2: 7850 | F2: 174 | G2: 1792 | H2: 214 | I2: 0 | J2: N | L2: =(E3-E2)/((B3-B2)/60) -> 2286.585386 | M2: =F2/1.9438444924406 -> 89.51333333 | N2: =G2/196.85039370079 -> 9.10336 | O2: =ATAN2(M2,N2)*180/PI() -> 5.806922763
A3: 1647839803 | B3: =A3-$A$2 -> 6.559999943 | C3: 25.09502 | D3: 102.91204 | E3: 8100 | F3: 178 | G3: 2624 | H3: 218 | I3: 0 | J3: P | K3: =IF(ATAN2(COS(C2*PI()/180)*SIN(C3*PI()/180)-SIN(C2*PI()/180)*COS(C3*PI()/180)*COS((D3-D2)*PI()/180),SIN((D3-D2)*PI()/180)*COS(C3*PI()/180))*180/PI()<0,360+ATAN2(COS(C2*PI()/180)*SIN(C3*PI()/180)-SIN(C2*PI()/180)*COS(C3*PI()/180)*COS((D3-D2)*PI()/180),SIN((D3-D2)*PI()/180)*COS(C3*PI()/180))*180/PI(),ATAN2(COS(C2*PI()/180)*SIN(C3*PI()/180)-SIN(C2*PI()/180)*COS(C3*PI()/180)*COS((D3-D2)*PI()/180),SIN((D3-D2)*PI()/180)*COS(C3*PI()/180))*180/PI()) -> 221.1661053 | L3: =(E4-E3)/((B4-B3)/60) -> 2218.114665 | M3: =F3/1.9438444924406 -> 91.57111111 | N3: =G3/196.85039370079 -> 13.32992 | O3: =ATAN2(M3,N3)*180/PI() -> 8.282317635
A4: 1647839808 | B4: 11.96999979 | C4: 25.09154 | D4: 102.90868 | E4: 8300 | F4: 179 | G4: 2048 | H4: 222 | I4: 2101 | J4: P | K4: =IF(ATAN2(COS(C3*PI()/180)*SIN(C4*PI()/180)-SIN(C3*PI()/180)*COS(C4*PI()/180)*COS((D4-D3)*PI()/180),SIN((D4-D3)*PI()/180)*COS(C4*PI()/180))*180/PI()<0,360+ATAN2(COS(C3*PI()/180)*SIN(C4*PI()/180)-SIN(C3*PI()/180)*COS(C4*PI()/180)*COS((D4-D3)*PI()/180),SIN((D4-D3)*PI()/180)*COS(C4*PI()/180))*180/PI(),ATAN2(COS(C3*PI()/180)*SIN(C4*PI()/180)-SIN(C3*PI()/180)*COS(C4*PI()/180)*COS((D4-D3)*PI()/180),SIN((D4-D3)*PI()/180)*COS(C4*PI()/180))*180/PI()) -> 221.1668471 | L4: 1107.011055 | M4: 92.08555556 | N4: 10.40384 | O4: 6.445952093
A5: 1647839814 | B5: 17.38999987 | C5: 25.08835 | D5: 102.90505 | E5: 8400 | F5: 183 | G5: 1024 | H5: 227 | I5: 2101 | J5: P | K5: 225.8629952 | L5: 677.6598078 | M5: 94.14333333 | N5: 5.20192 | O5: 3.162680529
A6: 1647839818 | B6: 21.81699991 | C6: 25.08591686 | D6: 102.9019637 | E6: 8450 | F6: 189 | G6: 1152 | H6: 229 | I6: 0 | J6: N | K6: 228.9618304 | L6: 3015.075724 | M6: 97.23 | N6: 5.85216 | O6: 3.444410628
A7: 1647839819 | B7: 22.8119998 | C7: 25.08537 | D7: 102.90127 | E7: 8500 | F7: 190 | G7: 1344 | H7: 229 | I7: 2101 | J7: P | K7: 228.9616686 | L7: 1375.515822 | M7: 97.74444444 | N7: 6.82752 | O7: 3.995661549
A8: 1647839821 | B8: 24.99299979 | C8: 25.08425931 | D8: 102.899834 | E8: 8550 | F8: 191 | G8: 960 | H8: 229 | I8: 2101 | J8: N | K8: 229.5034985 | L8: 878.7346133 | M8: 98.25888889 | N8: 4.8768 | O8: 2.841381199
A9: 1647839823 | B9: 26.69999981 | C9: 25.08339 | D9: 102.89871 | E9: 8575 | F9: 192 | G9: 1600 | H9: 229 | I9: 2101 | J9: P | K9: 229.5036612 | L9: 871.0800776 | M9: 98.77333333 | N9: 8.128 | O9: 4.704237068
A10: 1647839825 | B10: 28.42199993 | C10: 25.08197 | D10: 102.89688 | E10: 8600 | F10: 197 | G10: 1088 | H10: 229 | I10: 2101 | J10: P | K10: 229.4120574 | L10: 1098.901091 | M10: 101.3455556 | N10: 5.52704 | O10: 3.121623497
A11: 1647839826 | B11: 29.78699994 | C11: 25.08147 | D11: 102.89627 | E11: 8625 | F11: 198 | G11: 896 | H11: 229 | I11: 2101 | J11: P | K11: 227.8546888 | L11: 569.0440238 | M11: 101.86 | N11: 4.55168 | O11: 2.558596874
A12: 1647839829 | B12: 32.42299986 | C12: 25.07982 | D12: 102.89404 | E12: 8650 | F12: 200 | G12: 640 | H12: 230 | I12: 2101 | J12: P | K12: 230.7537909 | L12: 947.5679421 | M12: 102.8888889 | N12: 3.2512 | O12: 1.809894897
A13: 1647839830 | B13: 34.0059998 | C13: 25.07858 | D13: 102.89246 | E13: 8675 | F13: 204 | G13: 640 | H13: 230 | I13: 2101 | J13: P | K13: 229.0913557 | L13: 1279.863296 | M13: 104.9466667 | N13: 3.2512 | O13: 1.774429675
A14: 1647839831 | B14: 35.17799997 | C14: 25.07918 | D14: 102.89323 | E14: 8700 | F14: 203 | G14: 704 | H14: 230 | I14: 2101 | J14: P | K14: 49.29350036 | L14: 964.3202093 | M14: 104.4322222 | N14: 3.57632 | O14: 1.961348638
A15: 1647839835 | B15: 38.2889998 | C15: 25.0762 | D15: 102.88934 | E15: 8750 | F15: 209 | G15: 1024 | H15: 230 | I15: 2101 | J15: P | K15: 229.7763899 | L15: 1559.251346 | M15: 107.5188889 | N15: 5.20192 | O15: 2.769893151
A16: 1647839835 | B16: 39.25099993 | C16: 25.07533 | D16: 102.88818 | E16: 8775 | F16: 210 | G16: 1088 | H16: 230 | I16: 2101 | J16: P | K16: 230.373968 | L16: 1594.04891 | M16: 108.0333333 | N16: 5.52704 | O16: 2.928727639
A17: 1647839837 | B17: 41.1329999 | C17: 25.07433 | D17: 102.88686 | E17: 8825 | F17: 203 | G17: 704 | H17: 230 | I17: 2101 | J17: P | K17: 230.0910862 | L17: 1265.28888 | M17: 104.4322222 | N17: 3.57632 | O17: 1.961348638
A18: 1647839840 | B18: 43.50399995 | C18: 25.07318 | D18: 102.88535 | E18: 8875 | F18: 211 | G18: 1984 | H18: 230 | I18: 2101 | J18: P | K18: 229.9423128 | L18: 2156.721733 | M18: 108.5477778 | N18: 10.07872 | O18: 5.304734638
A19: 1647839841 | B19: 44.89499998 | C19: 25.07176 | D19: 102.88351 | E19: 8925 | F19: 215 | G19: 1344 | H19: 230 | I19: 2101 | J19: P | K19: 229.5686249 | L19: 720.4610892 | M19: 110.6055556 | N19: 6.82752 | O19: 3.532303135
A20: 1647839843 | B20: 46.977 | C20: 25.07071 | D20: 102.88213 | E20: 8950 | F20: 216 | G20: 1088 | H20: 230 | I20: 2101 | J20: P | K20: 229.9695518 | L20: 682.1282768 | M20: 111.12 | N20: 5.52704 | O20: 2.847509893
A21: 1647839845 | B21: 49.17599988 | C21: 25.06915 | D21: 102.88004 | E21: 8975 | F21: 221 | G21: 704 | H21: 230 | I21: 2101 | J21: P | K21: 230.510434 | L21: 0 | M21: 113.6922222 | N21: 3.57632 | O21: 1.801710737
A22: 1647839847 | B22: 50.33699989 | C22: 25.0681 | D22: 102.87862 | E22: 8975 | F22: 222 | G22: 704 | H22: 230 | I22: 2101 | J22: P | K22: 230.7743508 | L22: 717.3600873 | M22: 114.2066667 | N22: 3.57632 | O22: 1.793600236
A23: 1647839849 | B23: 52.42799997 | C23: 25.0674 | D23: 102.87774 | E23: 9000 | F23: 225 | G23: 704 | H23: 230 | I23: 2101 | J23: P | K23: 228.7114954 | L23: 1438.15918 | M23: 115.75 | N23: 3.57632 | O23: 1.769700876
A24: 1647839851 | B24: 54.51399994 | C24: 25.06535 | D24: 102.87501 | E24: 9050 | F24: 230 | G24: 896 | H24: 230 | I24: 2101 | J24: P | K24: 230.3421104 | L24: 1653.80363 | M24: 118.3222222 | N24: 4.55168 | O24: 2.20299721
A25: 1647839852 | B25: 55.421 | C25: 25.0647 | D25: 102.87406 | E25: 9075 | F25: 230 | G25: 896 | H25: 230 | I25: 2101 | J25: P | K25: 232.9348811 | L25: 618.0470206 | M25: 118.3222222 | N25: 4.55168 | O25: 2.20299721
A26: 1647839854 | B26: 57.84799981 | C26: 25.0643 | D26: 102.87354 | E26: 9100 | F26: 233 | G26: 1344 | H26: 230 | I26: 2101 | J26: P | K26: 229.6622425 | L26: 1508.548421 | M26: 119.8655556 | N26: 6.82752 | O26: 3.260034468
A27: 1647839857 | B27: 60.83099985 | C27: 25.06151 | D27: 102.86982 | E27: 9175 | F27: 235 | G27: 1344 | H27: 230 | I27: 2101 | J27: P | K27: 230.3774652 | L27: 5769.230981 | M27: 120.8944444 | N27: 6.82752 | O27: 3.232348577
A28: 1647839857 | B28: 61.09099984 | C28: 25.06064 | D28: 102.86865 | E28: 9200 | F28: 237 | G28: 1216 | H28: 230 | I28: 2101 | J28: P | K28: 230.6187364 | L28: 694.1230869 | M28: 121.9233333 | N28: 6.17728 | O28: 2.900426722
A29: 1647839859 | B29: 63.25199986 | C29: 25.05968 | D29: 102.86732 | E29: 9225 | F29: 238 | G29: 1280 | H29: 230 | I29: 2101 | J29: P | K29: 231.4519634 | L29: 1272.264609 | M29: 122.4377778 | N29: 6.5024 | O29: 3.039996431
A30: 1647839862 | B30: 65.6099999 | C30: 25.0578 | D30: 102.86484 | E30: 9275 | F30: 242 | G30: 1216 | H30: 230 | I30: 2101 | J30: P | K30: 230.076849 | L30: 1385.041622 | M30: 124.4955556 | N30: 6.17728 | O30: 2.840599732
A31: 1647839863 | B31: 66.69299984 | C31: 25.05679 | D31: 102.86349 | E31: 9300 | F31: 245 | G31: 1152 | H31: 231 | I31: 2101 | J31: P | K31: 230.4478143 | L31: 0 | M31: 126.0388889 | N31: 5.85216 | O31: 2.658413014
A32: 1647839865 | B32: 68.55999994 | C32: 25.05606 | D32: 102.8625 | E32: 9300 | F32: 242 | G32: 1216 | H32: 230 | I32: 2101 | J32: P | K32: 230.8554443 | L32: 1247.401262 | M32: 124.4955556 | N32: 6.17728 | O32: 2.840599732
A33: 1647839867 | B33: 70.96499991 | C33: 25.05386 | D33: 102.8595 | E33: 9350 | F33: 251 | G33: 960 | H33: 231 | I33: 2101 | J33: P | K33: 231.0102483 | L33: 1831.501819 | M33: 129.1255556 | N33: 4.8768 | O33: 2.162912785
A34: 1647839869 | B34: 72.60299993 | C34: 25.05297 | D34: 102.85831 | E34: 9400 | F34: 254 | G34: 1088 | H34: 230 | I34: 2101 | J34: P | K34: 230.4580345 | L34: 0 | M34: 130.6688889 | N34: 5.52704 | O34: 2.422056334
A35: 1647839870 | B35: 73.26899981 | C35: 25.05237 | D35: 102.85748 | E35: 9400 | F35: 254 | G35: 1088 | H35: 230 | I35: 2101 | J35: P | K35: 231.4115343 | L35: 2028.123204 | M35: 130.6688889 | N35: 5.52704 | O35: 2.422056334
A36: 1647839873 | B36: 76.96700001 | C36: 25.04974 | D36: 102.85406 | E36: 9525 | F36: 256 | G36: 2112 | H36: 230 | I36: 2101 | J36: P | K36: 229.6742246 | L36: 3568.03045 | M36: 131.6977778 | N36: 10.72896 | O36: 4.657402685
A37: 1647839875 | B37: 79.06900001 | C37: 25.04851 | D37: 102.85248 | E37: 9650 | F37: 256 | G37: 3200 | H37: 229 | I37: 2101 | J37: P | K37: 229.32778 | L37: 3837.719547 | M37: 131.6977778 | N37: 16.256 | O37: 7.036661655
A38: 1647839878 | B38: 81.80499983 | C38: 25.04557 | D38: 102.84877 | E38: 9825 | F38: 254 | G38: 3840 | H38: 228 | I38: 2101 | J38: P | K38: 228.8242682 | L38: 4297.993817 | M38: 130.6688889 | N38: 19.5072 | O38: 8.490822893
A39: 1647839879 | B39: 83.20099998 | C39: 25.04448 | D39: 102.84739 | E39: 9925 | F39: 254 | G39: 3840 | H39: 228 | I39: 2101 | J39: P | K39: 228.9174499 | L39: 1246.882969 | M39: 130.6688889 | N39: 19.5072 | O39: 8.490822893
A40: 1647839881 | B40: 84.40399981 | C40: 25.0442 | D40: 102.84704 | E40: 9950 | F40: 254 | G40: 3840 | H40: 228 | I40: 2101 | J40: P | K40: 228.554886 | L40: 4436.228939 | M40: 130.6688889 | N40: 19.5072 | O40: 8.490822893
A41: 1647839883 | B41: 87.10899997 | C41: 25.04161 | D41: 102.84369 | E41: 10150 | F41: 252 | G41: 3904 | H41: 229 | I41: 2101 | J41: P | K41: 229.5246741 | L41: 4182.933671 | M41: 129.64 | N41: 19.83232 | O41: 8.697673338
A42: 1647839885 | B42: 88.90199995 | C42: 25.03984 | D42: 102.84131 | E42: 10275 | F42: 251 | G42: 3904 | H42: 230 | I42: 2101 | J42: P | K42: 230.619586 | L42: 0 | M42: 129.1255556 | N42: 19.83232 | O42: 8.731792406
A43: 1647839885 | B43: 89.24399996 | C43: 25.04161 | D43: 102.84369 | E43: 10275 | F43: 251 | G43: 3904 | H43: 229 | I43: 2101 | J43: P | K43: 50.61857865 | L43: 3820.439311 | M43: 129.1255556 | N43: 19.83232 | O43: 8.731792406
A44: 1647839889 | B44: 92.38499999 | C44: 25.0378 | D44: 102.83856 | E44: 10475 | F44: 249 | G44: 4032 | H44: 231 | I44: 2101 | J44: P | K44: 230.658485 | L44: 5178.366188 | M44: 128.0966667 | N44: 20.48256 | O44: 9.084647967
A45: 1647839890 | B45: 94.12299991 | C45: 25.03624 | D45: 102.83636 | E45: 10625 | F45: 247 | G45: 4032 | H45: 231 | I45: 2101 | J45: P | K45: 231.9526228 | L45: 1949.317695 | M45: 127.0677778 | N45: 20.48256 | O45: 9.156966536
A46: 1647839892 | B46: 95.66199994 | C46: 25.03551 | D46: 102.8354 | E46: 10675 | F46: 247 | G46: 4032 | H46: 231 | I46: 2101 | J46: P | K46: 229.9944025 | L46: 4155.124866 | M46: 127.0677778 | N46: 20.48256 | O46: 9.156966536
A47: 1647839893 | B47: 96.74499989 | C47: 25.0345 | D47: 102.83401 | E47: 10750 | F47: 247 | G47: 4032 | H47: 231 | I47: 2101 | J47: P | K47: 231.2719483 | L47: 3012.048037 | M47: 127.0677778 | N47: 20.48256 | O47: 9.156966536
A48: 1647839894 | B48: 97.74099994 | C48: 25.03379 | D48: 102.83307 | E48: 10800 | F48: 246 | G48: 3968 | H48: 231 | I48: 2101 | J48: P | K48: 230.1844531 | L48: 3776.434929 | M48: 126.5533333 | N48: 20.15744 | O48: 9.050060231
A49: 1647839896 | B49: 99.727 | C49: 25.03207 | D49: 102.83068 | E49: 10925 | F49: 246 | G49: 3456 | H49: 231 | I49: 2101 | J49: P | K49: 231.5412408 | L49: 2595.797385 | M49: 126.5533333 | N49: 17.55648 | O49: 7.898113897
A50: 1647839900 | B50: 103.7719998 | C50: 25.02979 | D50: 102.82758 | E50: 11100 | F50: 245 | G50: 3200 | H50: 231 | I50: 2101 | J50: P | K50: 230.9336883 | L50: 4923.413382 | M50: 126.0388889 | N50: 16.256 | O50: 7.349212472
A51: 1647839902 | B51: 105.5999999 | C51: 25.02795 | D51: 102.82507 | E51: 11250 | F51: 245 | G51: 3584 | H51: 231 | I51: 2101 | J51: P | K51: 231.0262543 | L51: 0 | M51: 126.0388889 | N51: 18.20672 | O51: 8.219700285
A52: 1647839902 | B52: 106.2549999 | C52: 25.02795 | D52: 102.82507 | E52: 11250 | F52: 245 | G52: 3264 | H52: 231 | I52: 2101 | J52: P | L52: 3171.247291 | M52: 126.0388889 | N52: 16.58112 | O52: 7.494541958
A53: 1647839905 | B53: 109.0929999 | C53: 25.02621 | D53: 102.82272 | E53: 11400 | F53: 244 | G53: 3840 | H53: 230 | I53: 2101 | J53: P | K53: 230.7465426 | L53: 4687.500279 | M53: 125.5244444 | N53: 19.5072 | O53: 8.833424823
A54: 1647839907 | B54: 110.6929998 | C54: 25.02434 | D54: 102.82027 | E54: 11525 | F54: 243 | G54: 3712 | H54: 229 | I54: 2101 | J54: P | K54: 229.8916272 | L54: 0 | M54: 125.01 | N54: 18.85696 | O54: 8.57803157
A55: 1647839907 | B55: 111.102 | C55: 25.02434 | D55: 102.82027 | E55: 11525 | F55: 244 | G55: 3776 | H55: 230 | I55: 2101 | J55: P | L55: 2718.212127 | M55: 125.5244444 | N55: 19.18208 | O55: 8.688466266
A56: 1647839911 | B56: 114.4129999 | C56: 25.02173 | D56: 102.81713 | E56: 11675 | F56: 244 | G56: 3328 | H56: 227 | I56: 2101 | J56: P | K56: 227.4701621 | L56: 2701.080225 | M56: 125.5244444 | N56: 16.90624 | O56: 7.670713023
A57: 1647839912 | B57: 116.079 | C57: 25.02003 | D57: 102.81535 | E57: 11750 | F57: 246 | G57: 2816 | H57: 224 | I57: 2101 | J57: P | K57: 223.4953015 | L57: -3978.781371 | M57: 126.5533333 | N57: 14.30528 | O57: 6.449199886
A58: 1647839913 | B58: 116.4559999 | C58: 25.02052 | D58: 102.81586 | E58: 11725 | F58: 246 | G58: 2816 | H58: 224 | I58: 2101 | J58: P | K58: 43.32391435 | L58: 2708.396065 | M58: 126.5533333 | N58: 14.30528 | O58: 6.449199886
A59: 1647839916 | B59: 119.7789998 | C59: 25.01788 | D59: 102.81342 | E59: 11875 | F59: 249 | G59: 2560 | H59: 219 | I59: 2101 | J59: P | K59: 219.947268 | L59: 2798.507393 | M59: 128.0966667 | N59: 13.0048 | O59: 5.796996186
A60: 1647839917 | B60: 120.8509998 | C60: 25.01555 | D60: 102.81168 | E60: 11925 | F60: 251 | G60: 3136 | H60: 214 | I60: 2101 | J60: P | K60: 214.0874225 | L60: 1661.129354 | M60: 129.1255556 | N60: 15.93088 | O60: 7.033331216
A61: 1647839918 | B61: 121.7539999 | C61: 25.01494 | D61: 102.8113 | E61: 11950 | F61: 251 | G61: 3136 | H61: 214 | I61: 2101 | J61: P | K61: 209.4454648 | L61: 3261.882711 | M61: 129.1255556 | N61: 15.93088 | O61: 7.033331216
A62: 1647839921 | B62: 124.9729998 | C62: 25.01112 | D62: 102.80918 | E62: 12125 | F62: 254 | G62: 3776 | H62: 205 | I62: 2101 | J62: P | K62: 206.6993572 | L62: 1751.313425 | M62: 130.6688889 | N62: 19.18208 | O62: 8.35132155
A63: 1647839923 | B63: 126.6859999 | C63: 25.00951 | D63: 102.80853 | E63: 12175 | F63: 255 | G63: 3776 | H63: 203 | I63: 2101 | J63: P | K63: 200.0961911 | L63: 12931.0415 | M63: 131.1833333 | N63: 19.18208 | O63: 8.319030497
A64: 1647839923 | B64: 126.8019998 | C64: 25.00905 | D64: 102.80838 | E64: 12200 | F64: 256 | G64: 3776 | H64: 201 | I64: 2101 | J64: P | K64: 196.4631175 | L64: 2556.818196 | M64: 131.6977778 | N64: 19.18208 | O64: 8.286986457
A65: 1647839927 | B65: 130.3219998 | C65: 25.00512 | D65: 102.80711 | E65: 12350 | F65: 260 | G65: 3584 | H65: 194 | I65: 2101 | J65: P | K65: 196.3235287 | L65: 2559.726592 | M65: 133.7555556 | N65: 18.20672 | O65: 7.75142481
A66: 1647839928 | B66: 131.494 | C66: 25.00392 | D66: 102.8068 | E66: 12400 | F66: 259 | G66: 3712 | H66: 196 | I66: 2101 | J66: P | K66: 193.1768746 | L66: 2392.345051 | M66: 133.2411111 | N66: 18.85696 | O66: 8.055293757
A67: 1647839928 | B67: =A67-$A$2 -> 132.1209998 | C67: 25.0027 | D67: 102.80653 | E67: 12425 | F67: 261 | G67: 3456 | H67: 192 | I67: 2101 | J67: P | K67: 191.3414387 | L67: =(E68-E67)/((B68-B67)/60) -> 1913.753436 | M67: =F67/1.9438444924406 -> 134.27 | N67: =G67/196.85039370079 -> 17.55648 | O67: =ATAN2(M67,N67)*180/PI() -> 7.449449993
A68: 1647839932 | B68: 136.04 | C68: 24.99857 | D68: 102.80594 | E68: 12550 | F68: 266 | G68: 3136 | H68: 186 | I68: 2101 | J68: P | K68: =IF(ATAN2(COS(C67*PI()/180)*SIN(C68*PI()/180)-SIN(C67*PI()/180)*COS(C68*PI()/180)*COS((D68-D67)*PI()/180),SIN((D68-D67)*PI()/180)*COS(C68*PI()/180))*180/PI()<0,360+ATAN2(COS(C67*PI()/180)*SIN(C68*PI()/180)-SIN(C67*PI()/180)*COS(C68*PI()/180)*COS((D68-D67)*PI()/180),SIN((D68-D67)*PI()/180)*COS(C68*PI()/180))*180/PI(),ATAN2(COS(C67*PI()/180)*SIN(C68*PI()/180)-SIN(C67*PI()/180)*COS(C68*PI()/180)*COS((D68-D67)*PI()/180),SIN((D68-D67)*PI()/180)*COS(C68*PI()/180))*180/PI()) -> 187.3772782 | L68: 3865.979267 | M68: 136.8422222 | N68: 15.93088 | O68: 6.64036105
A69: 1647839934 | B69: 137.592 | C69: 24.99605 | D69: 102.80584 | E69: 12650 | F69: 269 | G69: 3264 | H69: 182 | I69: 2101 | J69: P | K69: 182.0597979 | L69: 0 | M69: 138.3855556 | N69: 16.58112 | O69: 6.832509513
A70: 1647839934 | B70: 137.9749999 | C70: 24.99605 | D70: 102.80584 | E70: 12650 | F70: 269 | G70: 3264 | H70: 182 | I70: 2101 | J70: P | L70: 1989.38993 | M70: 138.3855556 | N70: 16.58112 | O70: 6.832509513
A71: 1647839938 | B71: 141.7449999 | C71: 24.9912 | D71: 102.80612 | E71: 12775 | F71: 275 | G71: 2496 | H71: 178 | I71: 2101 | J71: P | K71: 177.0046343 | L71: 4999.99947 | M71: 141.4722222 | N71: 12.67968 | O71: 5.12154381
A72: 1647839939 | B72: 142.645 | C72: 24.98991 | D72: 102.8063 | E72: 12850 | F72: 277 | G72: 2560 | H72: 174 | I72: 2101 | J72: P | K72: 172.79196 | L72: 0 | M72: 142.5011111 | N72: 13.0048 | O72: 5.21442834
A73: 1647839940 | B73: 143.362 | C73: 24.98915 | D73: 102.80638 | E73: 12850 | F73: 277 | G73: 2560 | H73: 174 | I73: 2101 | J73: P | K73: 174.5499501 | L73: 3193.187953 | M73: 142.5011111 | N73: 13.0048 | O73: 5.21442834
A74: 1647839943 | B74: 147.1199999 | C74: 24.98483 | D74: 102.80741 | E74: 13050 | F74: 280 | G74: 3968 | H74: 167 | I74: 2101 | J74: P | K74: 167.8051197 | L74: 5389.221311 | M74: 144.0444444 | N74: 20.15744 | O74: 7.96618426
A75: 1647839944 | B75: 147.9549999 | C75: 24.98361 | D75: 102.80778 | E75: 13125 | F75: 280 | G75: 4224 | H75: 165 | I75: 2101 | J75: P | K75: 164.629044 | L75: -6382.981573 | M75: 144.0444444 | N75: 21.45792 | O75: 8.47289265
A76: 1647839944 | B76: 148.1899998 | C76: 24.98361 | D76: 102.80778 | E76: 13100 | F76: 280 | G76: 3968 | H76: 167 | I76: 2101 | J76: P | L76: 3219.651741 | M76: 144.0444444 | N76: 20.15744 | O76: 7.96618426
A77: 1647839949 | B77: 152.3829999 | C77: 24.97812 | D77: 102.80985 | E77: 13325 | F77: 285 | G77: 3968 | H77: 159 | I77: 2101 | J77: P | K77: 161.130376 | L77: 1368.613193 | M77: 146.6166667 | N77: 20.15744 | O77: 7.828174562
A78: 1647839950 | B78: 153.4789999 | C78: 24.97641 | D78: 102.81062 | E78: 13350 | F78: 289 | G78: 3136 | H78: 156 | I78: 2101 | J78: P | K78: 157.7955868 | L78: 1336.898421 | M78: 148.6744444 | N78: 15.93088 | O78: 6.116065637
A79: 1647839951 | B79: 154.6009998 | C79: 24.97518 | D79: 102.81125 | E79: 13375 | F79: 287 | G79: 3520 | H79: 157 | I79: 2101 | J79: P | K79: 155.094527 | L79: 1424.050594 | M79: 147.6455556 | N79: 17.8816 | O79: 6.905555033
A80: 1647839954 | B80: 157.7609999 | C80: 24.97105 | D80: 102.81367 | E80: 13450 | F80: 298 | G80: 2112 | H80: 150 | I80: 2101 | J80: P | K80: 152.0234554 | L80: 1316.944759 | M80: 153.3044444 | N80: 10.72896 | O80: 4.003298524
A81: 1647839955 | B81: 158.8999999 | C81: 24.96964 | D81: 102.81464 | E81: 13475 | F81: 300 | G81: 2112 | H81: 148 | I81: 2101 | J81: P | K81: 148.0505326 | L81: 1494.023981 | M81: 154.3333333 | N81: 10.72896 | O81: 3.976695781
A82: 1647839956 | B82: 159.9039998 | C82: 24.97055 | D82: 102.81397 | E82: 13500 | F82: 298 | G82: 2112 | H82: 150 | I82: 2101 | J82: P | K82: 326.279256 | L82: 2362.948942 | M82: 153.3044444 | N82: 10.72896 | O82: 4.003298524
A83: 1647839959 | B83: 163.0779998 | C83: 24.96556 | D83: 102.81799 | E83: 13625 | F83: 307 | G83: 3008 | H83: 142 | I83: 2101 | J83: P | K83: 143.8576948 | L83: 3826.52984 | M83: 157.9344444 | N83: 15.28064 | O83: 5.526340241
A84: 1647839960 | B84: 163.862 | C84: 24.96423 | D84: 102.81916 | E84: 13675 | F84: 307 | G84: 3136 | H84: 140 | I84: 2101 | J84: P | K84: 141.4271853 | L84: 1584.786148 | M84: 157.9344444 | N84: 15.93088 | O84: 5.759954368
A85: 1647839962 | B85: 165.7549999 | C85: 24.96249 | D85: 102.82084 | E85: 13725 | F85: 308 | G85: 3136 | H85: 139 | I85: 2101 | J85: P | K85: 138.8034495 | L85: 2380.952309 | M85: 158.4488889 | N85: 15.93088 | O85: 5.741378356
A86: 1647839965 | B86: 168.905 | C86: 24.95898 | D86: 102.82457 | E86: 13850 | F86: 312 | G86: 2752 | H86: 136 | I86: 2101 | J86: P | K86: 136.0665249 | L86: 0 | M86: 160.5066667 | N86: 13.98016 | O86: 4.977910024
A87: 1647839965 | B87: 169.158 | C87: 24.95837 | D87: 102.82526 | E87: 13850 | F87: 316 | G87: 2624 | H87: 135 | I87: 2101 | J87: P | K87: 134.2782233 | L87: 1075.268832 | M87: 162.5644444 | N87: 13.32992 | O87: 4.687638257
A88: 1647839967 | B88: 170.553 | C88: 24.95773 | D88: 102.82597 | E88: 13875 | F88: 318 | G88: 2432 | H88: 134 | I88: 2101 | J88: P | K88: 134.8347942 | L88: 893.9213491 | M88: 163.5933333 | N88: 12.35456 | O88: 4.318776358
A89: 1647839968 | B89: 172.2309999 | C89: 24.95577 | D89: 102.82841 | E89: 13900 | F89: 319 | G89: 2176 | H89: 133 | I89: 2101 | J89: P | K89: 131.5406963 | L89: 1628.664488 | M89: 164.1077778 | N89: 11.05408 | O89: 3.853545875
A90: 1647839970 | B90: 174.073 | C90: 24.95403 | D90: 102.83066 | E90: 13950 | F90: 322 | G90: 1792 | H90: 131 | I90: 2101 | J90: P | K90: 130.4625797 | L90: 0 | M90: 165.6511111 | N90: 9.10336 | O90: 3.145526659
A91: 1647839971 | B91: 175.175 | C91: 24.95265 | D91: 102.83244 | E91: 13950 | F91: 327 | G91: 1600 | H91: 129 | I91: 2101 | J91: P | K91: 130.5334889 | L91: 1787.13264 | M91: 168.2233333 | N91: 8.128 | O91: 2.766193014
A92: 1647839976 | B92: 180.211 | C92: 24.94804 | D92: 102.8396 | E92: 14100 | F92: 336 | G92: 2304 | H92: 125 | I92: 2101 | J92: P | K92: 125.3781325 | L92: 0 | M92: 172.8533333 | N92: 11.70432 | O92: 3.873723628
A93: 1647839977 | B93: 180.3099999 | C93: 24.94804 | D93: 102.8396 | E93: 14100 | F93: 334 | G93: 2112 | H93: 126 | I93: 2101 | J93: P | L93: 1651.982393 | M93: 171.8244444 | N93: 10.72896 | O93: 3.572990271
A94: 1647839978 | B94: 182.1259999 | C94: 24.94684 | D94: 102.84159 | E94: 14150 | F94: 319 | G94: 2176 | H94: 133 | I94: 2101 | J94: P | K94: 123.6262397 | L94: 2499.305699 | M94: 164.1077778 | N94: 11.05408 | O94: 3.853545875
A95: 1647839982 | B95: 185.727 | C95: 24.94368 | D95: 102.8476 | E95: 14300 | F95: 342 | G95: 2496 | H95: 120 | I95: 2101 | J95: P | K95: 120.1076372 | L95: 0 | M95: 175.94 | N95: 12.67968 | O95: 4.122077394
A96: 1647839982 | B96: 186.125 | C96: 24.94368 | D96: 102.8476 | E96: 14300 | F96: 341 | G96: 2496 | H96: 120 | I96: 2101 | J96: P | L96: 1569.858702 | M96: 175.4255556 | N96: 12.67968 | O96: 4.134123746
A97: 1647839984 | B97: 188.036 | C97: 24.94264 | D97: 102.84975 | E97: 14350 | F97: 343 | G97: 2496 | H97: 119 | I97: 2101 | J97: P | K97: 118.0785965 | L97: 3318.584201 | M97: 176.4544444 | N97: 12.67968 | O97: 4.110100921
A98: 1647839987 | B98: 190.7479999 | C98: 24.93997 | D98: 102.85574 | E98: 14500 | F98: 347 | G98: 2624 | H98: 115 | I98: 2101 | J98: P | K98: 116.1769288 | L98: 0 | M98: 178.5122222 | N98: 13.32992 | O98: 4.27048264
A99: 1647839987 | B99: 190.9429998 | C99: 24.93997 | D99: 102.85574 | E99: 14500 | F99: 344 | G99: 2496 | H99: 118 | I99: 2101 | J99: P | L99: 2365.930661 | M99: 176.9688889 | N99: 12.67968 | O99: 4.098193722
A100: 1647839989 | B100: 192.8449998 | C100: 24.93892 | D100: 102.85833 | E100: 14575 | F100: 348 | G100: 2688 | H100: 114 | I100: 2101 | J100: P | K100: 114.088647 | L100: 2978.160086 | M100: 179.0266667 | N100: 13.65504 | O100: 4.361720199
A101: 1647839992 | B101: 195.8669999 | C101: 24.93664 | D101: 102.86385 | E101: 14725 | F101: 349 | G101: 2816 | H101: 114 | I101: 2101 | J101: P | K101: 114.4887018 | L101: -3778.336824 | M101: 179.5411111 | N101: 14.30528 | O101: 4.555526514
A102: 1647839993 | B102: 196.2639999 | C102: 24.93692 | D102: 102.86317 | E102: 14700 | F102: 350 | G102: 2816 | H102: 114 | I102: 2101 | J102: P | K102: 294.4228813 | L102: 3051.88224 | M102: 180.0555556 | N102: 14.30528 | O102: 4.542565276
A103: 1647839994 | B103: 198.2299998 | C103: 24.93599 | D103: 102.86545 | E103: 14800 | F103: 350 | G103: 2880 | H103: 114 | I103: 2101 | J103: P | K103: 114.2191491 | L103: 3393.665047 | M103: 180.0555556 | N103: 14.6304 | O103: 4.645358547
A104: 1647839998 | B104: 201.3239999 | C104: 24.9331 | D104: 102.8723 | E104: 14975 | F104: 350 | G104: 2944 | H104: 114 | I104: 2101 | J104: P | K104: 114.9494749 | L104: -4504.505253 | M104: 180.0555556 | N104: 14.95552 | O104: 4.748121858
A105: 1647839998 | B105: 201.6569998 | C105: 24.93338 | D105: 102.87162 | E105: 14950 | F105: 350 | G105: 2944 | H105: 114 | I105: 2101 | J105: P | K105: 294.4222617 | L105: 3904.216546 | M105: 180.0555556 | N105: 14.95552 | O105: 4.748121858
A106: 1647840000 | B106: 203.5779998 | C106: 24.93155 | D106: 102.87582 | E106: 15075 | F106: 350 | G106: 2944 | H106: 114 | I106: 2101 | J106: P | K106: 115.6631088 | L106: 2648.305069 | M106: 180.0555556 | N106: 14.95552 | O106: 4.748121858
A107: 1647840003 | B107: 206.4099998 | C107: 24.92931 | D107: 102.88101 | E107: 15200 | F107: 352 | G107: 2816 | H107: 115 | I107: 2101 | J107: P | K107: 115.4509219 | L107: 1342.882598 | M107: 181.0844444 | N107: 14.30528 | O107: 4.516862353
A108: 1647840004 | B108: 207.527 | C108: 24.92903 | D108: 102.88168 | E108: 15225 | F108: 353 | G108: 2752 | H108: 115 | I108: 2101 | J108: P | K108: 114.7423705 | L108: 2340.093776 | M108: 181.5988889 | N108: 13.98016 | O108: 4.402160115
A109: 1647840006 | B109: 209.4499998 | C109: 24.92958 | D109: 102.8804 | E109: 15300 | F109: 354 | G109: 2688 | H109: 115 | I109: 2101 | J109: P | K109: 295.353522 | L109: 3838.280458 | M109: 182.1133333 | N109: 13.65504 | O109: 4.288070845
A110: 1647840008 | B110: 211.4039998 | C110: 24.92587 | D110: 102.88885 | E110: 15425 | F110: 355 | G110: 2880 | H110: 115 | I110: 2101 | J110: P | K110: 115.8325012 | L110: 0 | M110: 182.6277778 | N110: 14.6304 | O110: 4.580211318
A111: 1647840008 | B111: 212.247 | C111: 24.92587 | D111: 102.88885 | E111: 15425 | F111: 354 | G111: 2752 | H111: 115 | I111: 2101 | J111: P | L111: 3609.239948 | M111: 182.1133333 | N111: 13.98016 | O111: 4.38977331
A112: 1647840011 | B112: 214.3249998 | C112: 24.92413 | D112: 102.89271 | E112: 15550 | F112: 355 | G112: 3008 | H112: 115 | I112: 2101 | J112: P | K112: 116.4299917 | L112: 3536.067807 | M112: 182.6277778 | N112: 15.28064 | O112: 4.782851861
A113: 1647840013 | B113: 216.4459999 | C113: 24.92212 | D113: 102.89729 | E113: 15675 | F113: 356 | G113: 3200 | H113: 115 | I113: 2101 | J113: P | K113: 115.8228233 | L113: 2946.954909 | M113: 183.1422222 | N113: 16.256 | O113: 5.072372869
A114: 1647840014 | B114: 217.9729998 | C114: 24.92109 | D114: 102.8996 | E114: 15750 | F114: 356 | G114: 3200 | H114: 115 | I114: 2101 | J114: P | K114: 116.1814343 | L114: 2027.940421 | M114: 183.1422222 | N114: 16.256 | O114: 5.072372869
A115: 1647840016 | B115: 220.1919999 | C115: 24.91993 | D115: 102.9022 | E115: 15825 | F115: 356 | G115: 3200 | H115: 115 | I115: 2101 | J115: P | K115: 116.1947243 | L115: 5244.755 | M115: 183.1422222 | N115: 16.256 | O115: 5.072372869
A116: 1647840018 | B116: 221.908 | C116: 24.91805 | D116: 102.90644 | E116: 15975 | F116: 356 | G116: 3456 | H116: 116 | I116: 2101 | J116: P | K116: 116.0536593 | L116: 2142.857362 | M116: 183.1422222 | N116: 17.55648 | O116: 5.475786819
A117: 1647840020 | B117: 223.3079998 | C117: 24.91745 | D117: 102.90771 | E117: 16025 | F117: 355 | G117: 3584 | H117: 116 | I117: 2101 | J117: P | K117: 117.5162147 | L117: 3813.559106 | M117: 182.6277778 | N117: 18.20672 | O117: 5.693179741
A118: 1647840021 | B118: 224.4879999 | C118: 24.91745 | D118: 102.90771 | E118: 16100 | F118: 356 | G118: 3200 | H118: 115 | I118: 2101 | J118: P | L118: 4172.461627 | M118: 183.1422222 | N118: 16.256 | O118: 5.072372869
A119: 1647840023 | B119: 226.645 | C119: 24.91471 | D119: 102.91386 | E119: 16250 | F119: 354 | G119: 3904 | H119: 116 | I119: 2101 | J119: P | K119: 116.1613416 | L119: 3662.365014 | M119: 182.1133333 | N119: 19.83232 | O119: 6.215074546
A120: 1647840026 | B120: 229.5119998 | C120: 24.91266 | D120: 102.91837 | E120: 16425 | F120: 354 | G120: 3840 | H120: 115 | I120: 2101 | J120: P | K120: 116.6183421 | L120: 2429.149769 | M120: 182.1133333 | N120: 19.5072 | O120: 6.113966109
A121: 1647840028 | B121: 231.9819999 | C121: 24.91141 | D121: 102.9213 | E121: 16525 | F121: 352 | G121: 3712 | H121: 116 | I121: 2101 | J121: P | K121: 115.191121 | L121: 21126.76652 | M121: 181.0844444 | N121: 18.85696 | O121: 5.944984076
A122: 1647840028 | B122: 232.1239998 | C122: 24.91066 | D122: 102.92293 | E122: 16575 | F122: 352 | G122: 3584 | H122: 115 | I122: 2101 | J122: P | K122: 116.899363 | L122: 2390.057353 | M122: 181.0844444 | N122: 18.20672 | O122: 5.741378356
A123: 1647840032 | B123: 235.2619998 | C123: 24.90967 | D123: 102.92516 | E123: 16700 | F123: 352 | G123: 3136 | H123: 115 | I123: 2101 | J123: P | K123: 116.0804996 | L123: 3179.650097 | M123: 181.0844444 | N123: 15.93088 | O123: 5.027644656
A124: 1647840033 | B124: 237.1489999 | C124: 24.90706 | D124: 102.93096 | E124: 16800 | F124: 352 | G124: 2880 | H124: 116 | I124: 2101 | J124: P | K124: 116.3871183 | L124: -5244.755 | M124: 181.0844444 | N124: 14.6304 | O124: 4.619079002
A125: 1647840034 | B125: 237.4349999 | C125: 24.9075 | D125: 102.92998 | E125: 16775 | F125: 352 | G125: 2880 | H125: 116 | I125: 2101 | J125: P | K125: 296.3365951 | L125: 2921.536005 | M125: 181.0844444 | N125: 14.6304 | O125: 4.619079002
A126: 1647840037 | B126: 241.0289998 | C126: 24.90445 | D126: 102.93676 | E126: 16950 | F126: 353 | G126: 2688 | H126: 116 | I126: 2101 | J126: P | K126: 116.378993 | L126: 1352.569632 | M126: 181.5988889 | N126: 13.65504 | O126: 4.300172853
A127: 1647840038 | B127: 242.138 | C127: 24.90372 | D127: 102.93837 | E127: 16975 | F127: 353 | G127: 2688 | H127: 116 | I127: 2101 | J127: P | K127: 116.560121 | L127: 17045.48927 | M127: 181.5988889 | N127: 13.65504 | O127: 4.300172853
A128: 1647840038 | B128: 242.2259998 | C128: 24.9034 | D128: 102.939 | E128: 17000 | F128: 353 | G128: 2688 | H128: 116 | I128: 2101 | J128: P | K128: 119.2490068 | L128: -300000.2861 | M128: 181.5988889 | N128: 13.65504 | O128: 4.300172853
A129: 1647840038 | B129: 242.2359998 | C129: 24.90413 | D129: 102.93742 | E129: 16950 | F129: 353 | G129: 2688 | H129: 116 | I129: 2101 | J129: P | K129: 296.9941842 | L129: 2819.548781 | M129: 181.5988889 | N129: 13.65504 | O129: 4.300172853
A130: 1647840044 | B130: 247.556 | C130: 24.89973 | D130: 102.94703 | E130: 17200 | F130: 353 | G130: 2752 | H130: 116 | I130: 2101 | J130: P | K130: 116.7820039 | L130: 4909.985059 | M130: 181.5988889 | N130: 13.98016 | O130: 4.402160115
A131: 1647840044 | B131: =A131-$A$2 -> 248.1669998 | C131: 24.89898 | D131: 102.94863 | E131: 17250 | F131: 353 | G131: 2752 | H131: 116 | I131: 2101 | J131: P | K131: 117.328946 | L131: =(E132-E131)/((B132-B131)/60) -> 2079.290204 | M131: =F131/1.9438444924406 -> 181.5988889 | N131: =G131/196.85039370079 -> 13.98016 | O131: =ATAN2(M131,N131)*180/PI() -> 4.402160115
A132: 1647840048 | B132: 251.7739999 | C132: 24.89708 | D132: 102.95283 | E132: 17375 | F132: 353 | G132: 2752 | H132: 116 | I132: 2101 | J132: P | K132: =IF(ATAN2(COS(C131*PI()/180)*SIN(C132*PI()/180)-SIN(C131*PI()/180)*COS(C132*PI()/180)*COS((D132-D131)*PI()/180),SIN((D132-D131)*PI()/180)*COS(C132*PI()/180))*180/PI()<0,360+ATAN2(COS(C131*PI()/180)*SIN(C132*PI()/180)-SIN(C131*PI()/180)*COS(C132*PI()/180)*COS((D132-D131)*PI()/180),SIN((D132-D131)*PI()/180)*COS(C132*PI()/180))*180/PI(),ATAN2(COS(C131*PI()/180)*SIN(C132*PI()/180)-SIN(C131*PI()/180)*COS(C132*PI()/180)*COS((D132-D131)*PI()/180),SIN((D132-D131)*PI()/180)*COS(C132*PI()/180))*180/PI()) -> 116.5061107 | L132: 3151.260037 | M132: 181.5988889 | N132: 13.98016 | O132: 4.402160115
A133: 1647840048 | B133: 252.25 | C133: 24.89665 | D133: 102.95381 | E133: 17400 | F133: 353 | G133: 2752 | H133: 116 | I133: 2101 | J133: P | K133: 115.814239 | L133: 3768.844203 | M133: 181.5988889 | N133: 13.98016 | O133: 4.402160115
A134: 1647840049 | B134: 253.046 | C134: 24.89544 | D134: 102.95635 | E134: 17450 | F134: 354 | G134: 2752 | H134: 116 | I134: 2101 | J134: P | K134: 117.7070875 | L134: 2411.575644 | M134: 182.1133333 | N134: 13.98016 | O134: 4.38977331
A135: 1647840051 | B135: 254.29 | C135: 24.89455 | D135: 102.95827 | E135: 17500 | F135: 353 | G135: 2752 | H135: 116 | I135: 2101 | J135: P | K135: 117.0677995 | L135: 2268.602545 | M135: 181.5988889 | N135: 13.98016 | O135: 4.402160115
A136: 1647840054 | B136: 257.596 | C136: 24.89323 | D136: 102.96117 | E136: 17625 | F136: 352 | G136: 2880 | H136: 116 | I136: 2101 | J136: P | K136: 116.6466451 | L136: 4629.630184 | M136: 181.0844444 | N136: 14.6304 | O136: 4.619079002
A137: 1647840055 | B137: 258.5679998 | C137: 24.89149 | D137: 102.96503 | E137: 17700 | F137: 352 | G137: 2880 | H137: 116 | I137: 2101 | J137: P | K137: 116.4239517 | L137: 2419.354727 | M137: 181.0844444 | N137: 14.6304 | O137: 4.619079002
A138: 1647840058 | B138: 261.668 | C138: 24.88925 | D138: 102.96983 | E138: 17825 | F138: 352 | G138: 2816 | H138: 116 | I138: 2101 | J138: P | K138: 117.2226186 | L138: 1354.401858 | M138: 181.0844444 | N138: 14.30528 | O138: 4.516862353
A139: 1647840060 | B139: 263.8829999 | C139: 24.88852 | D139: 102.97144 | E139: 17875 | F139: 352 | G139: 2880 | H139: 116 | I139: 2101 | J139: P | K139: 116.5572998 | L139: 76923.00921 | M139: 181.0844444 | N139: 14.6304 | O139: 4.619079002
A140: 1647840060 | B140: 263.9219999 | C140: 24.88733 | D140: 102.97399 | E140: 17925 | F140: 352 | G140: 2688 | H140: 116 | I140: 2101 | J140: P | K140: 117.2226307 | L140: 1391.465742 | M140: 181.0844444 | N140: 13.65504 | O140: 4.312343235
A141: 1647840062 | B141: 266.0779998 | C141: 24.88646 | D141: 102.97592 | E141: 17975 | F141: 352 | G141: 2880 | H141: 116 | I141: 2101 | J141: P | K141: 116.4233475 | L141: 2213.205487 | M141: 181.0844444 | N141: 14.6304 | O141: 4.619079002
A142: 1647840065 | B142: 268.7889998 | C142: 24.8838 | D142: 102.98172 | E142: 18075 | F142: 353 | G142: 2304 | H142: 116 | I142: 2101 | J142: P | K142: 116.8181298 | L142: 1408.71522 | M142: 181.5988889 | N142: 11.70432 | O142: 3.687698102
A143: 1647840070 | B143: 274.1129999 | C143: 24.88055 | D143: 102.98884 | E143: 18200 | F143: 355 | G143: 2048 | H143: 116 | I143: 2101 | J143: P | K143: 116.7085426 | L143: 19230.7523 | M143: 182.6277778 | N143: 10.40384 | O143: 3.26047082
A144: 1647840070 | B144: 274.191 | C144: 24.88036946 | D144: 102.9892414 | E144: 18225 | F144: 356 | G144: 1920 | H144: 116 | I144: 2101 | J144: N | K144: 116.3720319 | L144: 4087.194969 | M144: 183.1422222 | N144: 9.7536 | O144: 3.048519662
A145: 1647840071 | B145: 274.5579998 | C145: 24.87952 | D145: 102.99113 | E145: 18250 | F145: 358 | G145: 1664 | H145: 116 | I145: 2101 | J145: P | K145: 116.371624 | L145: 775.3941671 | M145: 184.1711111 | N145: 8.45312 | O145: 2.627928038
A146: 1647840075 | B146: 278.4269998 | C146: 24.87726 | D146: 102.99606 | E146: 18300 | F146: 355 | G146: 2048 | H146: 116 | I146: 2101 | J146: P | K146: 116.8068505 | L146: 0 | M146: 182.6277778 | N146: 10.40384 | O146: 3.26047082
A147: 1647840075 | B147: 278.4619999 | C147: 24.87698 | D147: 102.99673 | E147: 18300 | F147: 361 | G147: 1152 | H147: 116 | I147: 2101 | J147: P | K147: 114.7331868 | L147: 0 | M147: 185.7144444 | N147: 5.85216 | O147: 1.804884658
A148: 1647840076 | B148: 279.454 | C148: 24.87593 | D148: 102.99905 | E148: 18300 | F148: 362 | G148: 1024 | H148: 116 | I148: 2101 | J148: P | K148: 116.5128902 | L148: 697.512226 | M148: 186.2288889 | N148: 5.20192 | O148: 1.600023402
A149: 1647840080 | B149: 283.7549999 | C149: 24.87342507 | D149: 103.0045469 | E149: 18350 | F149: 367 | G149: 704 | H149: 116 | I149: 2101 | J149: N | K149: 116.6689484 | L149: 0 | M149: 188.8011111 | N149: 3.57632 | O149: 1.085181854
A150: 1647840081 | B150: 284.3989999 | C150: 24.87305 | D150: 103.00537 | E150: 18350 | F150: 364 | G150: 896 | H150: 116 | I150: 2101 | J150: P | K150: 116.6696637 | L150: 3018.108779 | M150: 187.2577778 | N150: 4.55168 | O150: 1.392415918
A151: 1647840081 | B151: 284.8959999 | C151: 24.87213 | D151: 103.00741 | E151: 18375 | F151: 370 | G151: 640 | H151: 116 | I151: 2101 | J151: P | K151: 116.4309715 | L151: 841.1215103 | M151: 190.3444444 | N151: 3.2512 | O151: 0.978551943
A152: 1647840086 | B152: 290.2459998 | C152: 24.86797 | D152: 103.01657 | E152: 18450 | F152: 372 | G152: 1088 | H152: 116 | I152: 2101 | J152: P | K152: 116.5892127 | L152: 11811.01493 | M152: 191.3733333 | N152: 5.52704 | O152: 1.654295593
A153: 1647840087 | B153: 290.3729999 | C153: 24.86751 | D153: 103.01758 | E153: 18475 | F153: 373 | G153: 1344 | H153: 116 | I153: 2101 | J153: P | K153: 116.6559604 | L153: 0 | M153: 191.8877778 | N153: 6.82752 | O153: 2.037769835
A154: 1647840087 | B154: 291.2429998 | C154: 24.86751 | D154: 103.01758 | E154: 18475 | F154: 373 | G154: 1344 | H154: 116 | I154: 2101 | J154: P | L154: 1583.949269 | M154: 191.8877778 | N154: 6.82752 | O154: 2.037769835
A155: 1647840091 | B155: 295.0309999 | C155: 24.86397 | D155: 103.02548 | E155: 18575 | F155: 375 | G155: 1408 | H155: 116 | I155: 2101 | J155: P | K155: 116.2824941 | L155: -18072.3012 | M155: 192.9166667 | N155: 7.15264 | O155: 2.123344038
A156: 1647840091 | B156: 295.1139998 | C156: 24.86691 | D156: 103.01895 | E156: 18550 | F156: 375 | G156: 1408 | H156: 116 | I156: 2101 | J156: P | K156: 296.3934262 | L156: 1254.180498 | M156: 192.9166667 | N156: 7.15264 | O156: 2.123344038
A157: 1647840093 | B157: 296.3099999 | C157: 24.86336 | D157: 103.02689 | E157: 18575 | F157: 377 | G157: 1408 | H157: 116 | I157: 2101 | J157: P | K157: 116.2316876 | L157: 1707.261596 | M157: 193.9455556 | N157: 7.15264 | O157: 2.112089843
A158: 1647840097 | B158: 300.7029998 | C158: 24.85964 | D158: 103.03517 | E158: 18700 | F158: 381 | G158: 1472 | H158: 116 | I158: 2101 | J158: P | K158: 116.3412076 | L158: -29900.32048 | M158: 196.0033333 | N158: 7.47776 | O158: 2.184842439
A159: 1647840097 | B159: 301.0039999 | C159: 24.85940572 | D159: 103.0357201 | E159: 18550 | F159: 380 | G159: 1344 | H159: 116 | I159: 2101 | J159: N | K159: 115.1462773 | L159: 31034.48684 | M159: 195.4888889 | N159: 6.82752 | O159: 2.000262749
A160: 1647840098 | B160: 301.2939999 | C160: 24.85918 | D160: 103.03625 | E160: 18700 | F160: 381 | G160: 1472 | H160: 116 | I160: 2101 | J160: P | K160: 115.1462405 | L160: 2247.43154 | M160: 196.0033333 | N160: 7.47776 | O160: 2.184842439
A161: 1647840102 | B161: 305.9659998 | C161: 24.85547 | D161: 103.04464 | E161: 18875 | F161: 382 | G161: 2240 | H161: 116 | I161: 2101 | J161: P | K161: 115.9801419 | L161: 972.762611 | M161: 196.5177778 | N161: 11.3792 | O161: 3.313964419
A162: 1647840104 | B162: 307.5079999 | C162: 24.85547 | D162: 103.04464 | E162: 18900 | F162: 382 | G162: 2240 | H162: 116 | I162: 2101 | J162: P | L162: 3239.740824 | M162: 196.5177778 | N162: 11.3792 | O162: 3.313964419
A163: 1647840107 | B163: 311.2119999 | C163: 24.85139 | D163: 103.05374 | E163: 19100 | F163: 382 | G163: 2880 | H163: 115 | I163: 2101 | J163: P | K163: 116.2926872 | L163: 1977.587396 | M163: 196.5177778 | N163: 14.6304 | O163: 4.257714572
A164: 1647840109 | B164: 312.7289999 | C164: 24.85065 | D164: 103.05549 | E164: 19150 | F164: 382 | G164: 2880 | H164: 115 | I164: 2101 | J164: P | K164: 114.9855177 | L164: 2418.05473 | M164: 196.5177778 | N164: 14.6304 | O164: 4.257714572
A165: 1647840113 | B165: 316.451 | C165: 24.84737 | D165: 103.06284 | E165: 19300 | F165: 383 | G165: 2496 | H165: 115 | I165: 2101 | J165: P | K165: 116.1859146 | L165: 1099.706871 | M165: 197.0322222 | N165: 12.67968 | O165: 3.682096967
A166: 1647840114 | B166: 317.8149998 | C166: 24.84673 | D166: 103.06427 | E166: 19325 | F166: 383 | G166: 2624 | H166: 115 | I166: 2101 | J166: P | K166: 116.2525512 | L166: 2479.338765 | M166: 197.0322222 | N166: 13.32992 | O166: 3.870362492
A167: 1647840115 | B167: 318.4199998 | C167: 24.8462853 | D167: 103.0652706 | E167: 19350 | F167: 382 | G167: 2752 | H167: 115 | I167: 2101 | J167: N | K167: 116.0944832 | L167: 2630.040781 | M167: 196.5177778 | N167: 13.98016 | O167: 4.06913317
A168: 1647840118 | B168: 321.842 | C168: 24.84377 | D168: 103.07093 | E168: 19500 | F168: 385 | G168: 2368 | H168: 116 | I168: 2101 | J168: P | K168: 116.0932337 | L168: 1848.428942 | M168: 198.0611111 | N168: 12.02944 | O168: 3.475647036
A169: 1647840120 | B169: 323.4649999 | C169: 24.84265 | D169: 103.07343 | E169: 19550 | F169: 385 | G169: 2368 | H169: 116 | I169: 2101 | J169: P | K169: 116.2743459 | L169: 0 | M169: 198.0611111 | N169: 12.02944 | O169: 3.475647036
A170: 1647840120 | B170: 323.7219999 | C170: 24.84218 | D170: 103.07451 | E170: 19550 | F170: 386 | G170: 2368 | H170: 116 | I170: 2101 | J170: P | K170: 115.620309 | L170: 2974.223375 | M170: 198.5755556 | N170: 12.02944 | O170: 3.466664757
A171: 1647840121 | B171: 325.2349999 | C171: 24.84045 | D171: 103.07836 | E171: 19625 | F171: 385 | G171: 2496 | H171: 116 | I171: 2101 | J171: P | K171: 116.3422396 | L171: 1976.805529 | M171: 198.0611111 | N171: 12.67968 | O171: 3.663021403
A172: 1647840125 | B172: 329.0289998 | C172: 24.83841 | D172: 103.08295 | E172: 19750 | F172: 385 | G172: 2560 | H172: 116 | I172: 2101 | J172: P | K172: 116.0924349 | L172: 0 | M172: 198.0611111 | N172: 13.0048 | O172: 3.756679425
A173: 1647840125 | B173: 329.0949998 | C173: 24.83794 | D173: 103.08401 | E173: 19750 | F173: 385 | G173: 2560 | H173: 116 | I173: 2101 | J173: P | K173: 116.039545 | L173: 2984.084849 | M173: 198.0611111 | N173: 13.0048 | O173: 3.756679425
A174: 1647840128 | B174: 332.1109998 | C174: 24.8351 | D174: 103.09036 | E174: 19900 | F174: 386 | G174: 2496 | H174: 116 | I174: 2101 | J174: P | K174: 116.2339227 | L174: 1435.406594 | M174: 198.5755556 | N174: 12.67968 | O174: 3.653557448
A175: 1647840130 | B175: 334.201 | C175: 24.83399 | D175: 103.09285 | E175: 19950 | F175: 388 | G175: 2432 | H175: 116 | I175: 2101 | J175: P | K175: 116.160111 | L175: 0 | M175: 199.6044444 | N175: 12.35456 | O175: 3.541816282
A176: 1647840131 | B176: 334.622 | C176: 24.83354 | D176: 103.09393 | E176: 19950 | F176: 387 | G176: 2432 | H176: 116 | I176: 2101 | J176: P | K176: 114.6606496 | L176: 2518.468834 | M176: 199.09 | N176: 12.35456 | O176: 3.550944875
A177: 1647840134 | B177: 337.5999999 | C177: 24.83066 | D177: 103.10028 | E177: 20075 | F177: 387 | G177: 2176 | H177: 116 | I177: 2101 | J177: P | K177: 116.5522082 | L177: 2223.869571 | M177: 199.09 | N177: 11.05408 | O177: 3.177972261
A178: 1647840135 | B178: 338.9489999 | C178: 24.83322 | D178: 103.09464 | E178: 20125 | F178: 387 | G178: 2304 | H178: 116 | I178: 2101 | J178: P | K178: 296.5727481 | L178: 0 | M178: 199.09 | N178: 11.70432 | O178: 3.364494251
A179: 1647840136 | B179: 339.3339999 | C179: 24.82989 | D179: 103.10203 | E179: 20125 | F179: 388 | G179: 2176 | H179: 116 | I179: 2101 | J179: P | K179: 116.4034635 | L179: 2580.867049 | M179: 199.6044444 | N179: 11.05408 | O179: 3.169798335
A180: 1647840138 | B180: 342.24 | C180: 24.82701 | D180: 103.10845 | E180: 20250 | F180: 388 | G180: 2112 | H180: 116 | I180: 2101 | J180: P | K180: 116.301166 | L180: 0 | M180: 199.6044444 | N180: 10.72896 | O180: 3.0767508
A181: 1647840140 | B181: 343.671 | C181: 24.82654 | D181: 103.10954 | E181: 20250 | F181: 389 | G181: 2176 | H181: 116 | I181: 2101 | J181: P | K181: 115.4122028 | L181: 1885.606724 | M181: 200.1188889 | N181: 11.05408 | O181: 3.161666306
A182: 1647840142 | B182: 345.2619998 | C182: 24.82558 | D182: 103.11167 | E182: 20300 | F182: 389 | G182: 2176 | H182: 116 | I182: 2101 | J182: P | K182: 116.4083814 | L182: 1979.544693 | M182: 200.1188889 | N182: 11.05408 | O182: 3.161666306
A183: 1647840148 | B183: 351.3239999 | C183: 24.8205 | D183: 103.12215 | E183: 20500 | F183: 388 | G183: 2112 | H183: 116 | I183: 2101 | J183: P | K183: 118.1034437 | L183: 2865.329701 | M183: 199.6044444 | N183: 10.72896 | O183: 3.0767508
A184: 1647840149 | B184: 352.3709998 | C184: 24.81812 | D184: 103.12612 | E184: 20550 | F184: 388 | G184: 2112 | H184: 116 | I184: 2101 | J184: P | K184: 123.4440431 | L184: 1616.379288 | M184: 199.6044444 | N184: 10.72896 | O184: 3.0767508
A185: 1647840154 | B185: 357.9389999 | C185: 24.81272 | D185: 103.1341 | E185: 20700 | F185: 387 | G185: 1600 | H185: 127 | I185: 2101 | J185: P | K185: 126.7039824 | L185: 727.0964742 | M185: 199.09 | N185: 8.128 | O185: 2.337845298
A186: 1647840156 | B186: 360.0019999 | C186: 24.81056 | D186: 103.1368 | E186: 20725 | F186: 387 | G186: 1600 | H186: 127 | I186: 2101 | J186: P | K186: 131.3909666 | L186: 2244.66883 | M186: 199.09 | N186: 8.128 | O186: 2.337845298
A187: 1647840159 | B187: 362.675 | C187: 24.80717 | D187: 103.14087 | E187: 20825 | F187: 386 | G187: 1728 | H187: 133 | I187: 2101 | J187: P | K187: 132.5388707 | L187: 1676.602077 | M187: 198.5755556 | N187: 8.77824 | O187: 2.531171898
A188: 1647840162 | B188: 365.359 | C188: 24.80636991 | D188: 103.1417439 | E188: 20900 | F188: 389 | G188: 2176 | H188: 116 | I188: 2101 | J188: N | K188: 135.2438363 | L188: -1788.908717 | M188: 200.1188889 | N188: 11.05408 | O188: 3.161666306
A189: 1647840163 | B189: 367.036 | C189: 24.80587 | D189: 103.14229 | E189: 20850 | F189: 386 | G189: 1664 | H189: 135 | I189: 2101 | J189: P | K189: 135.2437549 | L189: 5671.077886 | M189: 198.5755556 | N189: 8.45312 | O189: 2.437540036
A190: 1647840165 | B190: 368.6229999 | C190: 24.79912 | D190: 103.14886 | E190: 21000 | F190: 384 | G190: 1472 | H190: 139 | I190: 2101 | J190: P | K190: 138.536342 | L190: 1603.849265 | M190: 197.5466667 | N190: 7.47776 | O190: 2.167789706
A191: 1647840169 | B191: 372.3639998 | C191: 24.80052 | D191: 103.14758 | E191: 21100 | F191: 384 | G191: 1536 | H191: 138 | I191: 2101 | J191: P | K191: 320.3086407 | L191: 2488.937932 | M191: 197.5466667 | N191: 7.80288 | O191: 2.261945569
A192: 1647840170 | B192: 374.1719999 | C192: 24.79028 | D192: 103.15567 | E192: 21175 | F192: 384 | G192: 1664 | H192: 146 | I192: 2101 | J192: P | K192: 144.3499754 | L192: 1063.075823 | M192: 197.5466667 | N192: 8.45312 | O192: 2.450220124
A193: 1647840172 | B193: 375.5829999 | C193: 24.78874 | D193: 103.1567 | E193: 21200 | F193: 384 | G193: 1536 | H193: 138 | I193: 2101 | J193: P | K193: 148.7336089 | L193: 3054.990208 | M193: 197.5466667 | N193: 7.80288 | O193: 2.261945569
A194: 1647840172 | B194: 376.0739999 | C194: 24.78786292 | D194: 103.1571971 | E194: 21225 | F194: 384 | G194: 2176 | H194: 116 | I194: 2101 | J194: N | K194: 152.7723442 | L194: 2072.968473 | M194: 197.5466667 | N194: 11.05408 | O194: 3.202748683
A195: 1647840176 | B195: =A195-$A$2 -> 379.6919999 | C195: 24.7814 | D195: 103.16086 | E195: 21350 | F195: 382 | G195: 1728 | H195: 153 | I195: 2101 | J195: P | K195: 152.7709912 | L195: =(E196-E195)/((B196-B195)/60) -> -9090.911193 | M195: =F195/1.9438444924406 -> 196.5177778 | N195: =G195/196.85039370079 -> 8.77824 | O195: =ATAN2(M195,N195)*180/PI() -> 2.557641302
A196: 1647840176 | B196: 379.8569999 | C196: 24.78204 | D196: 103.1605 | E196: 21325 | F196: 384 | G196: 1536 | H196: 138 | I196: 2101 | J196: P | K196: =IF(ATAN2(COS(C195*PI()/180)*SIN(C196*PI()/180)-SIN(C195*PI()/180)*COS(C196*PI()/180)*COS((D196-D195)*PI()/180),SIN((D196-D195)*PI()/180)*COS(C196*PI()/180))*180/PI()<0,360+ATAN2(COS(C195*PI()/180)*SIN(C196*PI()/180)-SIN(C195*PI()/180)*COS(C196*PI()/180)*COS((D196-D195)*PI()/180),SIN((D196-D195)*PI()/180)*COS(C196*PI()/180))*180/PI(),ATAN2(COS(C195*PI()/180)*SIN(C196*PI()/180)-SIN(C195*PI()/180)*COS(C196*PI()/180)*COS((D196-D195)*PI()/180),SIN((D196-D195)*PI()/180)*COS(C196*PI()/180))*180/PI()) -> 332.9466707 | L196: -1902.346201 | M196: 197.5466667 | N196: 7.80288 | O196: 2.261945569
A197: 1647840179 | B197: 383.0109999 | C197: 24.77621146 | D197: 103.1633188 | E197: 21225 | F197: 384 | G197: 2176 | H197: 116 | I197: 2101 | J197: N | K197: 156.2936394 | L197: 10091.74318 | M197: 197.5466667 | N197: 11.05408 | O197: 3.202748683
A198: 1647840181 | B198: 384.6459999 | C198: 24.77319 | D198: 103.16478 | E198: 21500 | F198: 384 | G198: 1984 | H198: 157 | I198: 2101 | J198: P | K198: 156.293172 | L198: 2171.945664 | M198: 197.5466667 | N198: 10.07872 | O198: 2.920666104
A199: 1647840186 | B199: 390.171 | C199: 24.76424 | D199: 103.16874 | E199: 21700 | F199: 386 | G199: 2112 | H199: 158 | I199: 2101 | J199: P | K199: 158.1111399 | L199: 1684.13178 | M199: 198.5755556 | N199: 10.72896 | O199: 3.092661647
A200: 1647840192 | B200: 395.5149999 | C200: 24.75549 | D200: 103.17245 | E200: 21850 | F200: 387 | G200: 1984 | H200: 158 | I200: 2101 | J200: P | K200: 158.9414129 | L200: 2065.167489 | M200: 199.09 | N200: 10.07872 | O200: 2.898064029
... 197 more rows
